[Event "Live Chess"]
[Site "Chess.com"]
[Date "2010.12.13"]
[Round "-"]
[White "hipposcottimus"]
[Black "Ferderic"]
[Result "0-1"]
[CurrentPosition "8/4R3/6pp/8/5P2/7k/2r2r2/4R1K1 w - -"]
[Timezone "UTC"]
[ECO "B07"]
[ECOUrl "https://www.chess.com/openings/Pirc-Defense-Main-Line-Byrne-Variation-4...Bg7"]
[UTCDate "2010.12.13"]
[UTCTime "08:17:08"]
[WhiteElo "1598"]
[BlackElo "2223"]
[TimeControl "60"]
[Termination "Ferderic won on time"]
[StartTime "08:17:08"]
[EndDate "2010.12.13"]
[EndTime "08:19:16"]
[Link "https://www.chess.com/game/live/76809629"]

1. e4 {[%clk 0:01:00]} 1... d6 {[%clk 0:01:00]} 2. d4 {[%clk 0:00:56.8]} 2... Nf6 {[%clk 0:01:00]} 3. Nc3 {[%clk 0:00:53.3]} 3... g6 {[%clk 0:00:59.5]} 4. Bg5 {[%clk 0:00:52.3]} 4... Bg7 {[%clk 0:00:58.8]} 5. Bxf6 {[%clk 0:00:52]} 5... Bxf6 {[%clk 0:00:58]} 6. Nf3 {[%clk 0:00:51.3]} 6... O-O {[%clk 0:00:57.3]} 7. Bb5 {[%clk 0:00:50.8]} 7... c6 {[%clk 0:00:56.2]} 8. Be2 {[%clk 0:00:50.4]} 8... Na6 {[%clk 0:00:55]} 9. O-O {[%clk 0:00:50.1]} 9... Nb4 {[%clk 0:00:54.1]} 10. a3 {[%clk 0:00:48.6]} 10... Na6 {[%clk 0:00:52.4]} 11. Bxa6 {[%clk 0:00:47.1]} 11... bxa6 {[%clk 0:00:51.7]} 12. e5 {[%clk 0:00:46.3]} 12... dxe5 {[%clk 0:00:50.5]} 13. dxe5 {[%clk 0:00:46]} 13... Qxd1 {[%clk 0:00:49.1]} 14. Raxd1 {[%clk 0:00:45.7]} 14... Bg7 {[%clk 0:00:47.8]} 15. Rde1 {[%clk 0:00:45.4]} 15... Be6 {[%clk 0:00:46.9]} 16. Ne4 {[%clk 0:00:44.1]} 16... Rfb8 {[%clk 0:00:45.7]} 17. Nc5 {[%clk 0:00:43.4]} 17... Rxb2 {[%clk 0:00:44.5]} 18. Nxe6 {[%clk 0:00:42.5]} 18... fxe6 {[%clk 0:00:44]} 19. c3 {[%clk 0:00:42]} 19... Rd8 {[%clk 0:00:42.4]} 20. Nd4 {[%clk 0:00:41]} 20... c5 {[%clk 0:00:41.1]} 21. Nxe6 {[%clk 0:00:40.1]} 21... Rd3 {[%clk 0:00:40.2]} 22. Nxc5 {[%clk 0:00:38.9]} 22... Rdd2 {[%clk 0:00:37.7]} 23. Nxa6 {[%clk 0:00:38.6]} 23... Rb3 {[%clk 0:00:36.1]} 24. Nc5 {[%clk 0:00:35.2]} 24... Rxa3 {[%clk 0:00:35.1]} 25. Ne6 {[%clk 0:00:34.7]} 25... Bh6 {[%clk 0:00:33.5]} 26. g3 {[%clk 0:00:29.1]} 26... Rxc3 {[%clk 0:00:32.1]} 27. Kg2 {[%clk 0:00:28.7]} 27... Rd5 {[%clk 0:00:30]} 28. Ra1 {[%clk 0:00:27.6]} 28... Rxe5 {[%clk 0:00:27.9]} 29. Nf4 {[%clk 0:00:25.8]} 29... Bxf4 {[%clk 0:00:26.8]} 30. gxf4 {[%clk 0:00:25.4]} 30... Rf5 {[%clk 0:00:26.2]} 31. Rxa7 {[%clk 0:00:21.7]} 31... Kf7 {[%clk 0:00:25.6]} 32. Ra4 {[%clk 0:00:19.3]} 32... Rc6 {[%clk 0:00:23.6]} 33. Rd1 {[%clk 0:00:16.6]} 33... Rc2 {[%clk 0:00:22]} 34. Rf1 {[%clk 0:00:14.7]} 34... Rd5 {[%clk 0:00:20.7]} 35. Kf3 {[%clk 0:00:13.9]} 35... h6 {[%clk 0:00:19.7]} 36. Re4 {[%clk 0:00:12.5]} 36... Rd3+ {[%clk 0:00:18.4]} 37. Kg2 {[%clk 0:00:11.8]} 37... Kf6 {[%clk 0:00:17.5]} 38. Rfe1 {[%clk 0:00:11.2]} 38... Rdd2 {[%clk 0:00:16.3]} 39. Re6+ {[%clk 0:00:10.1]} 39... Kf5 {[%clk 0:00:15.8]} 40. R6e5+ {[%clk 0:00:09.5]} 40... Kg4 {[%clk 0:00:14.7]} 41. h3+ {[%clk 0:00:06.8]} 41... Kh4 {[%clk 0:00:13.7]} 42. Rxe7 {[%clk 0:00:02.3]} 42... Rxf2+ {[%clk 0:00:12.8]} 43. Kg1 {[%clk 0:00:02]} 43... Kxh3 {[%clk 0:00:12]} 0-1

[Event "Live Chess"]
[Site "Chess.com"]
[Date "2010.12.13"]
[Round "-"]
[White "google1212"]
[Black "hipposcottimus"]
[Result "1-0"]
[CurrentPosition "2k5/7p/1KPN1p2/6p1/8/8/7P/8 b - -"]
[Timezone "UTC"]
[ECO "A07"]
[ECOUrl "https://www.chess.com/openings/Kings-Indian-Attack-Keres-Variation-3.Bg2"]
[UTCDate "2010.12.13"]
[UTCTime "08:13:23"]
[WhiteElo "1635"]
[BlackElo "1598"]
[TimeControl "60"]
[Termination "google1212 won on time"]
[StartTime "08:13:23"]
[EndDate "2010.12.13"]
[EndTime "08:15:42"]
[Link "https://www.chess.com/game/live/76808923"]

1. Nf3 {[%clk 0:01:00]} 1... d5 {[%clk 0:01:00]} 2. g3 {[%clk 0:01:00]} 2... Bg4 {[%clk 0:00:59.4]} 3. Bg2 {[%clk 0:01:00]} 3... Nc6 {[%clk 0:00:56.8]} 4. O-O {[%clk 0:00:59.5]} 4... e5 {[%clk 0:00:56.3]} 5. c4 {[%clk 0:00:59]} 5... e4 {[%clk 0:00:55.7]} 6. Ne1 {[%clk 0:00:58.4]} 6... Bb4 {[%clk 0:00:51.6]} 7. cxd5 {[%clk 0:00:58.4]} 7... Qxd5 {[%clk 0:00:50.9]} 8. Nc3 {[%clk 0:00:57.9]} 8... Bxc3 {[%clk 0:00:49.1]} 9. bxc3 {[%clk 0:00:57.9]} 9... O-O-O {[%clk 0:00:47.7]} 10. d3 {[%clk 0:00:55.7]} 10... Nf6 {[%clk 0:00:47.2]} 11. c4 {[%clk 0:00:53.2]} 11... Qd4 {[%clk 0:00:44.8]} 12. Be3 {[%clk 0:00:51.5]} 12... Qd6 {[%clk 0:00:41.4]} 13. Qa4 {[%clk 0:00:49.4]} 13... Nd4 {[%clk 0:00:38.1]} 14. dxe4 {[%clk 0:00:45.8]} 14... c5 {[%clk 0:00:35.1]} 15. Qxa7 {[%clk 0:00:44.1]} 15... Kd7 {[%clk 0:00:28.5]} 16. Qxb7+ {[%clk 0:00:41.6]} 16... Ke8 {[%clk 0:00:27.5]} 17. Bf4 {[%clk 0:00:38.5]} 17... Qd7 {[%clk 0:00:23.7]} 18. Qa6 {[%clk 0:00:35]} 18... Nxe2+ {[%clk 0:00:20.8]} 19. Kh1 {[%clk 0:00:33.5]} 19... Nxf4 {[%clk 0:00:20.5]} 20. gxf4 {[%clk 0:00:32.3]} 20... Nxe4 {[%clk 0:00:19.1]} 21. Bxe4 {[%clk 0:00:30.4]} 21... Ke7 {[%clk 0:00:18.9]} 22. Qb5 {[%clk 0:00:27.3]} 22... Rhe8 {[%clk 0:00:17.7]} 23. Qxc5+ {[%clk 0:00:25.8]} 23... Qd6 {[%clk 0:00:15.4]} 24. Qxd6+ {[%clk 0:00:24.8]} 24... Rxd6 {[%clk 0:00:14.3]} 25. Bg2 {[%clk 0:00:24.8]} 25... Kf8 {[%clk 0:00:13.5]} 26. Nc2 {[%clk 0:00:23.7]} 26... Rf6 {[%clk 0:00:13.1]} 27. Nb4 {[%clk 0:00:21.6]} 27... Rxf4 {[%clk 0:00:12.1]} 28. Rfe1 {[%clk 0:00:20.5]} 28... Bf3 {[%clk 0:00:11.1]} 29. Bxf3 {[%clk 0:00:19.2]} 29... Rxf3 {[%clk 0:00:09.9]} 30. Re4 {[%clk 0:00:18.1]} 30... Rxe4 {[%clk 0:00:08.2]} 31. Rd1 {[%clk 0:00:15.6]} 31... Re8 {[%clk 0:00:07.8]} 32. Nc6 {[%clk 0:00:14.3]} 32... Rxf2 {[%clk 0:00:06.9]} 33. Ne5 {[%clk 0:00:11.9]} 33... Re2 {[%clk 0:00:06.2]} 34. Ng4 {[%clk 0:00:09.7]} 34... Re1+ {[%clk 0:00:05.2]} 35. Rxe1 {[%clk 0:00:08.4]} 35... Rxe1+ {[%clk 0:00:04.9]} 36. Kg2 {[%clk 0:00:08.4]} 36... Re2+ {[%clk 0:00:04.6]} 37. Kg3 {[%clk 0:00:08.4]} 37... Rxa2 {[%clk 0:00:04.3]} 38. c5 {[%clk 0:00:07.6]} 38... Ra3+ {[%clk 0:00:04]} 39. Kf4 {[%clk 0:00:06.2]} 39... Ra6 {[%clk 0:00:03.6]} 40. Ke5 {[%clk 0:00:05.7]} 40... Rc6 {[%clk 0:00:03]} 41. Kd5 {[%clk 0:00:05.7]} 41... Ke8 {[%clk 0:00:02.7]} 42. Kxc6 {[%clk 0:00:04.7]} 42... Ke7 {[%clk 0:00:02.3]} 43. Kb6 {[%clk 0:00:04.7]} 43... Kd8 {[%clk 0:00:02]} 44. c6 {[%clk 0:00:04.7]} 44... Kc8 {[%clk 0:00:01.7]} 45. Ne5 {[%clk 0:00:04.4]} 45... f6 {[%clk 0:00:00.9]} 46. Nf7 {[%clk 0:00:04.4]} 46... g5 {[%clk 0:00:00.3]} 47. Nd6+ {[%clk 0:00:04.4]} 1-0

[Event "Live Chess"]
[Site "Chess.com"]
[Date "2010.12.13"]
[Round "-"]
[White "hipposcottimus"]
[Black "google1212"]
[Result "0-1"]
[CurrentPosition "3r4/pkp2Qpp/1p6/2p5/3q4/1P4P1/P1P4P/1KR5 w - -"]
[Timezone "UTC"]
[ECO "C00"]
[ECOUrl "https://www.chess.com/openings/French-Defense-Knight-Variation"]
[UTCDate "2010.12.13"]
[UTCTime "08:10:59"]
[WhiteElo "1605"]
[BlackElo "1628"]
[TimeControl "60"]
[Termination "google1212 won on time"]
[StartTime "08:10:59"]
[EndDate "2010.12.13"]
[EndTime "08:12:54"]
[Link "https://www.chess.com/game/live/76808510"]

1. e4 {[%clk 0:01:00]} 1... e6 {[%clk 0:01:00]} 2. Nf3 {[%clk 0:00:59.7]} 2... Ke7 {[%clk 0:00:59.7]} 3. d4 {[%clk 0:00:58.9]} 3... Kd6 {[%clk 0:00:59.7]} 4. Bf4+ {[%clk 0:00:52.9]} 4... Kc6 {[%clk 0:00:59.7]} 5. Qe2 {[%clk 0:00:47.5]} 5... b6 {[%clk 0:00:59.7]} 6. Nc3 {[%clk 0:00:40.8]} 6... Kb7 {[%clk 0:00:59.7]} 7. d5 {[%clk 0:00:39.2]} 7... Nc6 {[%clk 0:00:59.7]} 8. dxc6+ {[%clk 0:00:36.7]} 8... dxc6 {[%clk 0:00:59.7]} 9. Qa6+ {[%clk 0:00:33.1]} 9... Kb8 {[%clk 0:00:59]} 10. Qe2 {[%clk 0:00:32.9]} 10... Bb7 {[%clk 0:00:57]} 11. Bd2 {[%clk 0:00:31.9]} 11... Be7 {[%clk 0:00:55.6]} 12. O-O-O {[%clk 0:00:31.5]} 12... Bf6 {[%clk 0:00:54.8]} 13. Bg5 {[%clk 0:00:29.4]} 13... Bxg5+ {[%clk 0:00:51.8]} 14. Nxg5 {[%clk 0:00:26.2]} 14... Qxg5+ {[%clk 0:00:51.8]} 15. f4 {[%clk 0:00:24.8]} 15... Qxf4+ {[%clk 0:00:49]} 16. Kb1 {[%clk 0:00:24.6]} 16... Qe5 {[%clk 0:00:45.7]} 17. g3 {[%clk 0:00:24.3]} 17... c5 {[%clk 0:00:44.4]} 18. Qd3 {[%clk 0:00:22.5]} 18... f5 {[%clk 0:00:42.4]} 19. Re1 {[%clk 0:00:19.4]} 19... fxe4 {[%clk 0:00:41]} 20. Nxe4 {[%clk 0:00:16.5]} 20... Nf6 {[%clk 0:00:38.8]} 21. Bg2 {[%clk 0:00:14.2]} 21... Nxe4 {[%clk 0:00:37.4]} 22. Bxe4 {[%clk 0:00:13.3]} 22... Bxe4 {[%clk 0:00:35.1]} 23. Rxe4 {[%clk 0:00:12.9]} 23... Qd5 {[%clk 0:00:32.9]} 24. Qe3 {[%clk 0:00:10.1]} 24... Re8 {[%clk 0:00:31]} 25. Re1 {[%clk 0:00:09.1]} 25... Kb7 {[%clk 0:00:26.7]} 26. Rxe6 {[%clk 0:00:08.1]} 26... Rxe6 {[%clk 0:00:25.1]} 27. Qxe6 {[%clk 0:00:07.8]} 27... Qd4 {[%clk 0:00:21.8]} 28. Qf7 {[%clk 0:00:05]} 28... Rd8 {[%clk 0:00:21]} 29. Rc1 {[%clk 0:00:03]} 29... Qd1 {[%clk 0:00:19.8]} 30. b3 {[%clk 0:00:02]} 30... Qd4 {[%clk 0:00:18.4]} 0-1

[Event "Live Chess"]
[Site "Chess.com"]
[Date "2010.12.13"]
[Round "-"]
[White "Ozairsaeed"]
[Black "hipposcottimus"]
[Result "1-0"]
[CurrentPosition "2k5/pp1r2rp/2p4P/8/4Pp2/3R1P2/PPP5/4K3 b - -"]
[Timezone "UTC"]
[ECO "A00"]
[ECOUrl "https://www.chess.com/openings/Vant-Kruijs-Opening-1...e5"]
[UTCDate "2010.12.13"]
[UTCTime "08:08:08"]
[WhiteElo "1316"]
[BlackElo "1613"]
[TimeControl "60"]
[Termination "Ozairsaeed won on time"]
[StartTime "08:08:08"]
[EndDate "2010.12.13"]
[EndTime "08:10:23"]
[Link "https://www.chess.com/game/live/76807966"]

1. e3 {[%clk 0:01:00]} 1... e5 {[%clk 0:01:00]} 2. h4 {[%clk 0:00:59.3]} 2... d5 {[%clk 0:00:58.4]} 3. Nf3 {[%clk 0:00:58.4]} 3... e4 {[%clk 0:00:57.3]} 4. Ng5 {[%clk 0:00:57]} 4... f6 {[%clk 0:00:55.6]} 5. Nh3 {[%clk 0:00:55.9]} 5... Ne7 {[%clk 0:00:52.2]} 6. g4 {[%clk 0:00:55]} 6... Nec6 {[%clk 0:00:47.2]} 7. Nc3 {[%clk 0:00:52.9]} 7... Na6 {[%clk 0:00:46.9]} 8. d3 {[%clk 0:00:51.5]} 8... Bd7 {[%clk 0:00:45.8]} 9. dxe4 {[%clk 0:00:50.4]} 9... Bb4 {[%clk 0:00:45.1]} 10. Qxd5 {[%clk 0:00:47.8]} 10... Ne7 {[%clk 0:00:43.5]} 11. Qd3 {[%clk 0:00:38.7]} 11... Nc5 {[%clk 0:00:35.9]} 12. Qc4 {[%clk 0:00:37.1]} 12... Bxc3+ {[%clk 0:00:30.2]} 13. Qxc3 {[%clk 0:00:34.2]} 13... Ne6 {[%clk 0:00:28.4]} 14. Bc4 {[%clk 0:00:32.5]} 14... c6 {[%clk 0:00:25.9]} 15. Bxe6 {[%clk 0:00:31.2]} 15... Bxe6 {[%clk 0:00:25.7]} 16. Qd3 {[%clk 0:00:30.4]} 16... Qc7 {[%clk 0:00:24.7]} 17. Qa3 {[%clk 0:00:28.1]} 17... Bd7 {[%clk 0:00:23.7]} 18. e5 {[%clk 0:00:27.5]} 18... fxe5 {[%clk 0:00:21.8]} 19. e4 {[%clk 0:00:26.8]} 19... Rf8 {[%clk 0:00:20.4]} 20. Bg5 {[%clk 0:00:25.4]} 20... Rf7 {[%clk 0:00:18.7]} 21. Rf1 {[%clk 0:00:20.7]} 21... O-O-O {[%clk 0:00:09.3]} 22. Rd1 {[%clk 0:00:17.8]} 22... Re8 {[%clk 0:00:08.2]} 23. Rd3 {[%clk 0:00:14.9]} 23... Bxg4 {[%clk 0:00:07.2]} 24. Rh1 {[%clk 0:00:11]} 24... Bxh3 {[%clk 0:00:06.2]} 25. Rhxh3 {[%clk 0:00:09.8]} 25... Ng6 {[%clk 0:00:05.1]} 26. h5 {[%clk 0:00:08.7]} 26... Nf4 {[%clk 0:00:04.4]} 27. Bxf4 {[%clk 0:00:07.1]} 27... exf4 {[%clk 0:00:04.1]} 28. f3 {[%clk 0:00:06.2]} 28... Qe7 {[%clk 0:00:02.4]} 29. Qxe7 {[%clk 0:00:05]} 29... Rexe7 {[%clk 0:00:02.1]} 30. Rg3 {[%clk 0:00:03.6]} 30... Rd7 {[%clk 0:00:01.8]} 31. Rxg7 {[%clk 0:00:01.7]} 31... Rxg7 {[%clk 0:00:00.1]} 32. h6 {[%clk 0:00:01.4]} 1-0

[Event "Live Chess"]
[Site "Chess.com"]
[Date "2010.12.13"]
[Round "-"]
[White "hipposcottimus"]
[Black "sodnomjamts"]
[Result "0-1"]
[CurrentPosition "r4rk1/pppb1pp1/4p3/4n3/2PN2p1/8/PPK2PPP/5B1R w - -"]
[Timezone "UTC"]
[ECO "B02"]
[ECOUrl "https://www.chess.com/openings/Alekhines-Defense-Two-Pawns-Attack-3...Nb6-4.d4"]
[UTCDate "2010.12.13"]
[UTCTime "08:06:14"]
[WhiteElo "1626"]
[BlackElo "1631"]
[TimeControl "60"]
[Termination "sodnomjamts won by resignation"]
[StartTime "08:06:14"]
[EndDate "2010.12.13"]
[EndTime "08:07:37"]
[Link "https://www.chess.com/game/live/76807608"]

1. e4 {[%clk 0:01:00]} 1... Nf6 {[%clk 0:01:00]} 2. e5 {[%clk 0:00:58.4]} 2... Nd5 {[%clk 0:00:58.7]} 3. c4 {[%clk 0:00:55.2]} 3... Nb6 {[%clk 0:00:57.6]} 4. d4 {[%clk 0:00:53.3]} 4... Nc6 {[%clk 0:00:56.8]} 5. Nc3 {[%clk 0:00:44.9]} 5... d6 {[%clk 0:00:55.8]} 6. Nf3 {[%clk 0:00:41.2]} 6... dxe5 {[%clk 0:00:55]} 7. dxe5 {[%clk 0:00:41]} 7... Qxd1+ {[%clk 0:00:53.5]} 8. Nxd1 {[%clk 0:00:40.8]} 8... e6 {[%clk 0:00:51.8]} 9. Ne3 {[%clk 0:00:40.3]} 9... Bb4+ {[%clk 0:00:51]} 10. Bd2 {[%clk 0:00:38.3]} 10... Bxd2+ {[%clk 0:00:50.2]} 11. Kxd2 {[%clk 0:00:37]} 11... O-O {[%clk 0:00:48.3]} 12. Kc2 {[%clk 0:00:32]} 12... Nd7 {[%clk 0:00:46.1]} 13. Ng4 {[%clk 0:00:23.4]} 13... h5 {[%clk 0:00:43.6]} 14. Rd1 {[%clk 0:00:12.6]} 14... hxg4 {[%clk 0:00:41.2]} 15. Rxd7 {[%clk 0:00:10.9]} 15... Bxd7 {[%clk 0:00:40.1]} 16. Nd4 {[%clk 0:00:06.5]} 16... Nxe5 {[%clk 0:00:39.4]} 0-1

[Event "Live Chess"]
[Site "Chess.com"]
[Date "2010.12.13"]
[Round "-"]
[White "CryingWolf"]
[Black "hipposcottimus"]
[Result "0-1"]
[CurrentPosition "1r6/RP4pk/5p1p/2B5/1P3P2/7P/6P1/6K1 w - -"]
[Timezone "UTC"]
[ECO "C57"]
[ECOUrl "https://www.chess.com/openings/Italian-Game-Knight-Attack-Polerio-Defense"]
[UTCDate "2010.12.13"]
[UTCTime "08:00:15"]
[WhiteElo "1499"]
[BlackElo "1634"]
[TimeControl "60"]
[Termination "hipposcottimus won on time"]
[StartTime "08:00:15"]
[EndDate "2010.12.13"]
[EndTime "08:02:21"]
[Link "https://www.chess.com/game/live/76806470"]

1. e4 {[%clk 0:01:00]} 1... e5 {[%clk 0:01:00]} 2. Nf3 {[%clk 0:00:57.3]} 2... Nc6 {[%clk 0:00:59.2]} 3. Bc4 {[%clk 0:00:56]} 3... Nf6 {[%clk 0:00:57.5]} 4. Ng5 {[%clk 0:00:54]} 4... d5 {[%clk 0:00:54.7]} 5. exd5 {[%clk 0:00:53.4]} 5... Na5 {[%clk 0:00:54.3]} 6. Qe2 {[%clk 0:00:51.5]} 6... Nxc4 {[%clk 0:00:48.7]} 7. Qxc4 {[%clk 0:00:48]} 7... Nxd5 {[%clk 0:00:47.5]} 8. O-O {[%clk 0:00:43.9]} 8... Qxg5 {[%clk 0:00:45]} 9. Qxd5 {[%clk 0:00:42.2]} 9... Bd6 {[%clk 0:00:41.7]} 10. d4 {[%clk 0:00:41.1]} 10... Qe7 {[%clk 0:00:39.4]} 11. dxe5 {[%clk 0:00:39.8]} 11... Bxe5 {[%clk 0:00:38.8]} 12. Re1 {[%clk 0:00:38.8]} 12... f6 {[%clk 0:00:38.5]} 13. f4 {[%clk 0:00:36.7]} 13... c6 {[%clk 0:00:37]} 14. Qb3 {[%clk 0:00:32.9]} 14... Bd4+ {[%clk 0:00:35.9]} 15. Be3 {[%clk 0:00:28.4]} 15... Be6 {[%clk 0:00:26.8]} 16. Bxd4 {[%clk 0:00:20.7]} 16... Bxb3 {[%clk 0:00:24]} 17. Rxe7+ {[%clk 0:00:19.3]} 17... Kxe7 {[%clk 0:00:23.4]} 18. axb3 {[%clk 0:00:18.9]} 18... Kf7 {[%clk 0:00:23]} 19. Nc3 {[%clk 0:00:18.3]} 19... Rhe8 {[%clk 0:00:22.6]} 20. h3 {[%clk 0:00:17]} 20... Kg8 {[%clk 0:00:22.3]} 21. Bc5 {[%clk 0:00:15.7]} 21... b6 {[%clk 0:00:20.2]} 22. Ba3 {[%clk 0:00:14.4]} 22... c5 {[%clk 0:00:19.6]} 23. Nb5 {[%clk 0:00:13.6]} 23... a6 {[%clk 0:00:18.3]} 24. Nc7 {[%clk 0:00:12.7]} 24... Rad8 {[%clk 0:00:17.2]} 25. Nxe8 {[%clk 0:00:11.8]} 25... Rxe8 {[%clk 0:00:17]} 26. b4 {[%clk 0:00:11.2]} 26... Re2 {[%clk 0:00:16.5]} 27. bxc5 {[%clk 0:00:09.5]} 27... Rxc2 {[%clk 0:00:16.1]} 28. cxb6 {[%clk 0:00:07.8]} 28... Rc8 {[%clk 0:00:15.4]} 29. Bc5 {[%clk 0:00:06]} 29... Rb8 {[%clk 0:00:14.9]} 30. Rxa6 {[%clk 0:00:04.1]} 30... Rb7 {[%clk 0:00:14.5]} 31. b4 {[%clk 0:00:02.9]} 31... Rb8 {[%clk 0:00:14]} 32. Ra7 {[%clk 0:00:02.3]} 32... h6 {[%clk 0:00:09.5]} 33. b7 {[%clk 0:00:01.6]} 33... Kh7 {[%clk 0:00:09.3]} 0-1

[Event "Live Chess"]
[Site "Chess.com"]
[Date "2010.12.13"]
[Round "-"]
[White "hipposcottimus"]
[Black "CryingWolf"]
[Result "1-0"]
[CurrentPosition "r4r1k/p1Q2Bpp/1p6/6n1/8/8/PPP1q1PP/5RK1 b - -"]
[Timezone "UTC"]
[ECO "C57"]
[ECOUrl "https://www.chess.com/openings/Italian-Game-Knight-Attack-Polerio-Defense"]
[UTCDate "2010.12.13"]
[UTCTime "07:57:39"]
[WhiteElo "1629"]
[BlackElo "1504"]
[TimeControl "60"]
[Termination "hipposcottimus won on time"]
[StartTime "07:57:39"]
[EndDate "2010.12.13"]
[EndTime "07:59:49"]
[Link "https://www.chess.com/game/live/76806004"]

1. e4 {[%clk 0:01:00]} 1... e5 {[%clk 0:01:00]} 2. Nf3 {[%clk 0:00:59.7]} 2... Nc6 {[%clk 0:00:59.4]} 3. Bc4 {[%clk 0:00:59.1]} 3... Nf6 {[%clk 0:00:57.5]} 4. Ng5 {[%clk 0:00:56.6]} 4... d5 {[%clk 0:00:56.6]} 5. exd5 {[%clk 0:00:55.9]} 5... Na5 {[%clk 0:00:55.1]} 6. Be2 {[%clk 0:00:55.2]} 6... Nxd5 {[%clk 0:00:52]} 7. d3 {[%clk 0:00:54.8]} 7... Nf4 {[%clk 0:00:49.6]} 8. Ne4 {[%clk 0:00:54.2]} 8... Ne6 {[%clk 0:00:46.4]} 9. O-O {[%clk 0:00:53.3]} 9... b6 {[%clk 0:00:44]} 10. f4 {[%clk 0:00:53]} 10... exf4 {[%clk 0:00:41.9]} 11. Bxf4 {[%clk 0:00:50.8]} 11... Nxf4 {[%clk 0:00:39.8]} 12. Rxf4 {[%clk 0:00:50.5]} 12... Bd6 {[%clk 0:00:39.3]} 13. Rf2 {[%clk 0:00:48.1]} 13... O-O {[%clk 0:00:38.4]} 14. Bh5 {[%clk 0:00:43.4]} 14... Bb7 {[%clk 0:00:34.3]} 15. Qf3 {[%clk 0:00:42]} 15... Bxe4 {[%clk 0:00:33]} 16. dxe4 {[%clk 0:00:41.4]} 16... Bc5 {[%clk 0:00:29.5]} 17. Bxf7+ {[%clk 0:00:30]} 17... Kh8 {[%clk 0:00:25.6]} 18. e5 {[%clk 0:00:26.2]} 18... Bxf2+ {[%clk 0:00:23.8]} 19. Kxf2 {[%clk 0:00:25]} 19... Qd7 {[%clk 0:00:21.4]} 20. e6 {[%clk 0:00:24.7]} 20... Qe7 {[%clk 0:00:18.6]} 21. Kg1 {[%clk 0:00:23.2]} 21... Nc6 {[%clk 0:00:17.3]} 22. Nc3 {[%clk 0:00:22.2]} 22... Nd4 {[%clk 0:00:16.4]} 23. Qf2 {[%clk 0:00:19]} 23... Nxe6 {[%clk 0:00:15.2]} 24. Rf1 {[%clk 0:00:16.4]} 24... Ng5 {[%clk 0:00:12.1]} 25. Nd5 {[%clk 0:00:12.7]} 25... Qd7 {[%clk 0:00:08.6]} 26. Qf4 {[%clk 0:00:08.7]} 26... Qxd5 {[%clk 0:00:05.1]} 27. Qxc7 {[%clk 0:00:06.2]} 27... Qd2 {[%clk 0:00:01.4]} 28. Kh1 {[%clk 0:00:05.2]} 28... Qe2 {[%clk 0:00:00.3]} 29. Kg1 {[%clk 0:00:04.9]} 1-0

[Event "Live Chess"]
[Site "Chess.com"]
[Date "2010.12.13"]
[Round "-"]
[White "CryingWolf"]
[Black "hipposcottimus"]
[Result "1-0"]
[CurrentPosition "r1bq2nr/1pPk2pp/p1p5/8/5B2/8/PPP2PpP/RN1QR1K1 b - -"]
[Timezone "UTC"]
[ECO "C68"]
[ECOUrl "https://www.chess.com/openings/Ruy-Lopez-Opening-Morphy-Defense-Exchange-Kings-Bishop-Variation-6.d4"]
[UTCDate "2010.12.13"]
[UTCTime "07:56:22"]
[WhiteElo "1509"]
[BlackElo "1624"]
[TimeControl "60"]
[Termination "CryingWolf won by checkmate"]
[StartTime "07:56:22"]
[EndDate "2010.12.13"]
[EndTime "07:57:07"]
[Link "https://www.chess.com/game/live/76805788"]

1. e4 {[%clk 0:01:00]} 1... e5 {[%clk 0:01:00]} 2. Nf3 {[%clk 0:00:58.1]} 2... Nc6 {[%clk 0:00:59.6]} 3. Bb5 {[%clk 0:00:57.3]} 3... a6 {[%clk 0:00:55.9]} 4. Bxc6 {[%clk 0:00:56.6]} 4... dxc6 {[%clk 0:00:55.6]} 5. O-O {[%clk 0:00:55.9]} 5... Bd6 {[%clk 0:00:55.2]} 6. d4 {[%clk 0:00:54.5]} 6... f5 {[%clk 0:00:54.9]} 7. dxe5 {[%clk 0:00:51.2]} 7... fxe4 {[%clk 0:00:54.3]} 8. exd6 {[%clk 0:00:48.8]} 8... exf3 {[%clk 0:00:53.9]} 9. Re1+ {[%clk 0:00:47.8]} 9... Kd7 {[%clk 0:00:48.1]} 10. Bf4 {[%clk 0:00:38]} 10... fxg2 {[%clk 0:00:44.2]} 11. dxc7# {[%clk 0:00:36.7]} 1-0

[Event "Live Chess"]
[Site "Chess.com"]
[Date "2010.12.13"]
[Round "-"]
[White "hipposcottimus"]
[Black "CryingWolf"]
[Result "1-0"]
[CurrentPosition "r5k1/ppp2p2/1b2r1p1/8/2n5/2B2N1P/PPP2PP1/RN3R1K b - -"]
[Timezone "UTC"]
[ECO "C55"]
[ECOUrl "https://www.chess.com/openings/Italian-Game-Anti-Fried-Liver-Defense"]
[UTCDate "2010.12.13"]
[UTCTime "07:54:10"]
[WhiteElo "1634"]
[BlackElo "1497"]
[TimeControl "60"]
[Termination "hipposcottimus won on time"]
[StartTime "07:54:10"]
[EndDate "2010.12.13"]
[EndTime "07:56:11"]
[Link "https://www.chess.com/game/live/76805364"]

1. e4 {[%clk 0:01:00]} 1... e5 {[%clk 0:01:00]} 2. Nf3 {[%clk 0:00:59.7]} 2... Nc6 {[%clk 0:00:59.6]} 3. Bc4 {[%clk 0:00:59.4]} 3... h6 {[%clk 0:00:58.3]} 4. d4 {[%clk 0:00:57.9]} 4... exd4 {[%clk 0:00:56.8]} 5. Nxd4 {[%clk 0:00:56.9]} 5... Bc5 {[%clk 0:00:56.2]} 6. Nb3 {[%clk 0:00:52.8]} 6... Bb6 {[%clk 0:00:49.5]} 7. Qf3 {[%clk 0:00:51.9]} 7... Nf6 {[%clk 0:00:47.8]} 8. Bf4 {[%clk 0:00:48.6]} 8... d6 {[%clk 0:00:44.3]} 9. O-O {[%clk 0:00:41.4]} 9... Bg4 {[%clk 0:00:43.2]} 10. Qg3 {[%clk 0:00:34]} 10... O-O {[%clk 0:00:41.9]} 11. Kh1 {[%clk 0:00:30]} 11... Qd7 {[%clk 0:00:40.4]} 12. h3 {[%clk 0:00:29]} 12... Nxe4 {[%clk 0:00:38.6]} 13. Qxg4 {[%clk 0:00:27.5]} 13... Qd8 {[%clk 0:00:32.2]} 14. Bxh6 {[%clk 0:00:24.4]} 14... g6 {[%clk 0:00:21.4]} 15. Qxe4 {[%clk 0:00:18.2]} 15... d5 {[%clk 0:00:18.8]} 16. Bxd5 {[%clk 0:00:14.1]} 16... Re8 {[%clk 0:00:18]} 17. Qf4 {[%clk 0:00:12.1]} 17... Qxd5 {[%clk 0:00:15.3]} 18. Qf6 {[%clk 0:00:11.3]} 18... Qe5 {[%clk 0:00:07.8]} 19. Bg7 {[%clk 0:00:10.6]} 19... Qxf6 {[%clk 0:00:06.3]} 20. Bxf6 {[%clk 0:00:10.3]} 20... Re6 {[%clk 0:00:05.5]} 21. Bc3 {[%clk 0:00:10]} 21... Ne5 {[%clk 0:00:03.9]} 22. N3d2 {[%clk 0:00:09.4]} 22... Nc4 {[%clk 0:00:02.2]} 23. Nf3 {[%clk 0:00:09]} 1-0